[Event "1000 GM Labor Day Super Swiss 2024"]
[Site "San Jose"]
[Date "2024.09.02"]
[Round "5.15"]
[White "Angeles Mercado, Anthony R"]
[Black "Kiewra, Keaton"]
[Result "0-1"]
[Annotator "TA"]
[ECO "B52"]
[WhiteElo "2083"]
[BlackElo "2287"]
[PlyCount "46"]
[EventDate "2024.08.30"]
[EventType "swiss"]
[EventCountry "USA"]
[SourceTitle "playchess.com"]
[Source "ChessBase"]
[SourceQuality "1"]
[TimeControl "5400+30"]

{[%evp 26,46,-5,-19,-15,-22,-12,-37,0,-13,0,0,0,0,0,0,-6,-94,-98,-103,-93,-832,-810]} 1. e4 {[%emt 0:05:31]} c5 {[%emt 0:00:08]} 2. Nf3 {[%emt 0:00:19]} d6 {[%emt 0:00:29]} 3. Bb5+ {[%emt 0:00:17]} Bd7 {[%emt 0:00:17]} 4. Bxd7+ {[%emt 0:00:56]} Qxd7 {[%emt 0:00:08]} 5. O-O {[%emt 0:00:43]} Nf6 {[%emt 0:00:06]} 6. Re1 {[%emt 0:00:09]} Nc6 {[%emt 0:00:06]} 7. c3 {[%emt 0:00:26]} e6 {[%emt 0:00:06]} 8. d4 {[%emt 0:00:47]} cxd4 {[%emt 0:00:06]} 9. cxd4 {[%emt 0:00:04]} d5 {[%emt 0:00:05]} 10. e5 {[%emt 0:02:44]} Ne4 {[%emt 0:00:07]} 11. Nbd2 {[%emt 0:00:05]} Nxd2 {[%emt 0:00:06]} 12. Bxd2 {[%emt 0:00:04]} Be7 {[%emt 0:00:07]} 13. Rc1 {[%emt 0:00:05]} O-O {[%emt 0:00:07]} 14. Rc3 {[%emt 0:00:02]} Rac8 {[%emt 0:00:26]} 15. a3 {[%emt 0:00:36]} b5 {[%emt 0:01:01]} 16. Rd3 {[%emt 0:01:04]} Bd8 {[%emt 0:00:42] Black is slightly better.} 17. h4 {[%emt 0:01:00]} Bb6 {[%emt 0:00:49]} 18. h5 {[%emt 0:20:15]} h6 {[%emt 0:02:00]} 19. g4 {[%emt 0:02:16]} f6 {[%emt 0:01:51]} 20. exf6 {[%emt 0:25:40]} Rxf6 {[%emt 0:00:08] [#] ...Rcf8 is the strong threat.} 21. g5 {[%emt 0:03:29]} (21. Be3 $1 $11) 21... hxg5 $17 {[%emt 0:02:34]} 22. Bxg5 {[%emt 0:01:52]} Rf5 {[%emt 0:00:10][%cal Oc6d4] White must now prevent ...Nxd4!} 23. Ne5 $2 {[%emt 0:03:05][%mdl 8192]} (23. Bh4 $17) 23... Rxg5+ {[%emt 0:00:38] Weighted Error Value: White=0.70/Black=0.06 (flawless) .  Loses game:     	White=1     	---        Mistake:       	White=1     	---        Inaccurate:     	---       	Black=1      OK:         	White=2     	Black=1      Best:        	---       	Black=3} 0-1

[Event "1000 GM Labor Day Super Swiss 2024"]
[Site "San Jose"]
[Date "2024.09.02"]
[Round "5.16"]
[White "Piasetski, Leon"]
[Black "Tang, Dylan"]
[Result "1/2-1/2"]
[Annotator "TA"]
[ECO "E14"]
[WhiteElo "2167"]
[BlackElo "2092"]
[PlyCount "35"]
[EventDate "2024.08.30"]
[EventType "swiss"]
[EventCountry "USA"]
[SourceTitle "playchess.com"]
[Source "ChessBase"]
[SourceQuality "1"]
[TimeControl "5400+30"]

{[%evp 22,35,0,0,6,0,0,-10,0,-10,0,0,80,20,143,150]} 1. c4 {[%emt 0:01:12]} e6 {[%emt 0:00:28]} 2. Nf3 {[%emt 0:01:20]} Nf6 {[%emt 0:01:14]} 3. b3 {[%emt 0:03:44]} d5 {[%emt 0:00:58]} 4. Bb2 {[%emt 0:00:16]} Be7 {[%emt 0:00:16]} 5. e3 {[%emt 0:03:23]} O-O {[%emt 0:01:50]} 6. d4 {[%emt 0:02:11]} b6 {[%emt 0:05:34]} 7. Bd3 {[%emt 0:02:51]} Bb7 {[%emt 0:01:22]} 8. O-O {[%emt 0:01:56]} c5 {[%emt 0:09:28]} 9. Nbd2 {[%emt 0:02:31]} Nc6 {[%emt 0:08:53]} 10. Rc1 {[%emt 0:02:29]} cxd4 {[%emt 0:08:32]} 11. exd4 {[%emt 0:00:52]} Rc8 {[%emt 0:00:32]} 12. Qe2 {[%emt 0:09:20]} Bd6 {[%emt 0:06:50]} 13. Ne5 {[%emt 0:01:18]} Qe7 {[%emt 0:02:50]} 14. Rcd1 {[%emt 0:07:33]} Rfd8 {[%emt 0:01:40]} 15. Ndf3 {[%emt 0:00:38]} Rc7 {[%emt 0:07:59]} 16. Ng5 {[%emt 0:05:13]} Qe8 {[%emt 0:01:11]} (16... Rf8 $11 {remains equal.}) 17. f4 {[%emt 0:05:46] White has more active pieces.} ({White should try} 17. Rfe1 $16) 17... g6 {[%emt 0:04:47]} (17... h6 $11 {keeps the balance.}) 18. Qf2 {[%emt 0:16:17] White took control after the opening.   Weighted Error Value: White=0.16 (very precise) /Black=0.43.  Mistake:       	White=1     	Black=2      OK:         	White=3     	Black=2} 1/2-1/2

[Event "1000 GM Labor Day Super Swiss 2024"]
[Site "San Jose"]
[Date "2024.09.02"]
[Round "5.17"]
[White "Garduno Huerta, Joshua Emiliano"]
[Black "Zuluaga Mancilla, Cesar"]
[Result "1/2-1/2"]
[Annotator "TA"]
[ECO "D37"]
[WhiteElo "2056"]
[BlackElo "2166"]
[PlyCount "150"]
[EventDate "2024.08.30"]
[EventType "swiss"]
[EventCountry "USA"]
[SourceTitle "playchess.com"]
[Source "ChessBase"]
[SourceQuality "1"]
[TimeControl "5400+30"]

{[%evp 39,150,46,50,61,54,50,50,41,64,58,45,20,14,20,18,0,85,83,135,33,42,16,22,22,85,3,4,5,9,12,7,0,0,0,0,0,0,0,0,0,0,0,0,0,0,0,0,-8,0,0,0,0,0,0,0,0,0,0,0,0,0,0,0,0,0,-8,0,0,0,-8,0,0,0,-8,0,0,0,0,0,0,0,0,0,0,0,0,0,0,0,0,0,-8,-8,-8,-8,-8,-8,-8,-8,-8,-8,-8,-8,-8,0,-8,0,-8,0,0,0,-8,0]} 1. d4 {[%emt 0:01:01]} d5 {[%emt 0:10:07]} 2. c4 {[%emt 0:00:50]} e6 {[%emt 0:02:20]} 3. Nc3 {[%emt 0:00:14]} Nf6 {[%emt 0:00:48]} 4. Nf3 {[%emt 0:00:12]} a6 {[%emt 0:00:05]} 5. cxd5 {[%emt 0:00:52]} exd5 {[%emt 0:00:07]} 6. Bg5 {[%emt 0:00:07] D37: Queen's Gambit Declined: 5 Bf4.} c6 {[%emt 0:04:15]} 7. e3 {[%emt 0:00:57]} h6 {[%emt 0:01:13]} 8. Bh4 {[%emt 0:00:47]} Be7 {[%emt 0:05:59]} 9. Bd3 {[%emt 0:01:27]} Be6 {[%emt 0:00:57]} 10. Rb1 $146 {[%emt 0:01:33]} ({Predecessor:} 10. O-O O-O 11. h3 Nbd7 12. Qc2 Re8 13. Ne2 Ne4 14. Bxe7 Rxe7 15. Bxe4 dxe4 16. Qxe4 Bxh3 {½-½ Remolar Gallen,J (2305)-Vega Gutierrez,S (2361) Santiago de Compostela Bicapawn GP Rap rapid 2022 (9)}) 10... Nbd7 {[%emt 0:00:31]} 11. b4 {[%emt 0:01:13]} a5 {[%emt 0:00:26]} 12. a3 {[%emt 0:10:55]} axb4 {[%emt 0:01:44]} 13. axb4 {[%emt 0:00:43]} Ne4 {[%emt 0:23:20]} 14. Bxe7 {[%emt 0:03:17]} Qxe7 {[%emt 0:01:38]} 15. Qc2 {[%emt 0:10:40]} f5 16. O-O {[%emt 0:09:39]} O-O {[%emt 0:01:01]} 17. Na4 {[%emt 0:02:05]} b5 {[%emt 0:12:40]} 18. Nc5 {[%emt 0:01:38]} Nexc5 {[%emt 0:00:07]} 19. dxc5 {[%emt 0:00:57]} f4 {[%emt 0:00:32]} 20. Rfe1 {[%emt 0:13:13]} fxe3 {[%emt 0:01:38]} 21. Rxe3 {[%emt 0:02:16]} Qf6 {[%emt 0:00:12]} 22. Qb2 {[%emt 0:04:59]} Bg4 {[%emt 0:07:36]} 23. Qxf6 {[%emt 0:01:19]} Nxf6 {[%emt 0:00:01]} 24. Nd4 {[%emt 0:02:03]} Bd7 {[%emt 0:00:09]} 25. h3 {[%emt 0:01:13]} Rfe8 {[%emt 0:00:11]} 26. Rxe8+ {[%emt 0:00:59]} Bxe8 {[%emt 0:01:16]} 27. Re1 {[%emt 0:03:02]} Bd7 {[%emt 0:05:55] [#]} (27... Ra4 $11) 28. Bf5 $1 $16 {[%emt 0:01:16]} Be8 {[%emt 0:06:32] [#]} (28... Bxf5 $142 29. Nxf5 Kf7 30. Re7+ Kf8) 29. Bc2 {[%emt 0:10:27]} (29. Re6 $1 $16) 29... Ra2 $14 {[%emt 0:01:33]} 30. Re2 {[%emt 0:00:36]} Ra1+ {[%emt 0:01:17]} 31. Kh2 {[%emt 0:00:09]} Bd7 {[%emt 0:01:18]} (31... Kf7 $11 {remains equal.}) 32. Bf5 {[%emt 0:02:52]} (32. g4 $16) 32... Rd1 $1 $11 {[%emt 0:00:45]} (32... Bxf5 33. Nxf5 Kh7 34. Re7 $18) 33. Bxd7 {[%emt 0:02:59]} Rxd4 {[%emt 0:00:08]} 34. Bxc6 {[%emt 0:00:06]} Rxb4 {[%emt 0:00:06]} 35. Bb7 {[%emt 0:01:35]} Rc4 {[%emt 0:00:07]} 36. c6 {[%emt 0:00:14]} Kf7 {[%emt 0:00:11]} 37. Rb2 {[%emt 0:05:50]} b4 {[%emt 0:00:41]} 38. Rxb4 {[%emt 0:02:07]} ({But not} 38. c7 Rxc7 39. Rxb4 Ke6 $15) 38... Rxb4 {[%emt 0:00:17]} 39. c7 {[%emt 0:00:01]} Rc4 $1 {[%emt 0:00:53]} ({Reject} 39... Rxb7 $6 40. c8=Q (40. c8=B $2 {too greedy.} Rb2 $19) 40... Rd7 41. Qc2 $16) 40. c8=Q {[%emt 0:00:04]} Rxc8 {[%emt 0:00:14]} 41. Bxc8 {[%emt 0:00:01]} Ke7 {[%emt 0:01:26]} 42. Kg3 {[%emt 0:00:25]} Ne4+ {[%emt 0:01:25]} 43. Kf4 {[%emt 0:00:36]} Kf6 {[%emt 0:00:40]} 44. f3 {[%emt 0:01:56]} g5+ {[%emt 0:00:13]} 45. Ke3 {[%emt 0:02:08]} Nd6 {[%emt 0:00:04]} 46. Ba6 {[%emt 0:00:07]} Ke5 {[%emt 0:00:02]} 47. Bd3 {[%emt 0:01:39]} d4+ {[%emt 0:00:12]} 48. Kf2 {[%emt 0:00:40]} Nb7 {[%emt 0:00:05]} 49. g3 {[%emt 0:00:11]} Nc5 {[%emt 0:00:09]} 50. Bc4 {[%emt 0:00:20]} Na4 {[%emt 0:01:34]} 51. Ke2 {[%emt 0:00:34]} Nc5 {[%emt 0:01:12]} 52. Kd2 {[%emt 0:00:41]} Kf5 {[%emt 0:00:22]} 53. Bd3+ {[%emt 0:00:21]} Ke5 {[%emt 0:00:30]} 54. Bc4 {[%emt 0:00:30]} Na4 {[%emt 0:00:30]} 55. Bb3 {[%emt 0:00:30]} Nc5 {[%emt 0:00:30]} 56. Bc4 {[%emt 0:00:30]} Kf5 {[%emt 0:00:39]} 57. Bd3+ {[%emt 0:00:30]} Kf6 {[%emt 0:00:21]} 58. Bb5 {[%emt 0:00:30]} Kg7 {[%emt 0:00:30]} 59. Be8 {[%emt 0:00:30]} Kf8 {[%emt 0:00:30]} 60. Bg6 {[%emt 0:00:30]} Ke7 {[%emt 0:00:30]} 61. Bh7 {[%emt 0:00:30]} Kd6 {[%emt 0:00:30]} 62. Bg6 {[%emt 0:00:30]} Nd7 {[%emt 0:00:30]} 63. f4 {[%emt 0:00:30]} gxf4 {[%emt 0:00:30]} 64. gxf4 {[%emt 0:00:30]} Nc5 {[%emt 0:00:30]} 65. h4 {[%emt 0:00:30]} Ne6 {[%emt 0:00:30]} 66. f5 {[%emt 0:00:30]} Nf4 {[%emt 0:00:30]} 67. h5 {[%emt 0:00:30]} Ke5 {[%emt 0:00:30]} 68. Kc2 {[%emt 0:00:30]} Nd5 {[%emt 0:05:33]} 69. Kd2 {[%emt 0:00:29]} Nf6 {[%emt 0:00:30]} 70. Kd3 {[%emt 0:00:30]} Ne4 {[%emt 0:00:30]} 71. Kc4 {[%emt 0:00:30]} Nf6 {[%emt 0:03:14]} 72. Kd3 {[%emt 0:00:04]} Nd5 {[%emt 0:00:30]} 73. Kc4 {[%emt 0:00:30]} Nf6 {[%emt 0:00:30]} 74. Kd3 {[%emt 0:00:30]} Nd5 {[%emt 0:00:01]} 75. Kc4 {[%emt 0:01:51]} Nf6 {[%emt 0:01:17]} 1/2-1/2

[Event "1000 GM Labor Day Super Swiss 2024"]
[Site "San Jose"]
[Date "2024.09.02"]
[Round "5.18"]
[White "Champsi, Imran"]
[Black "Montes Orozco, Miguel Angel"]
[Result "0-1"]
[Annotator "TA"]
[ECO "B43"]
[WhiteElo "2012"]
[BlackElo "2155"]
[PlyCount "64"]
[EventDate "2024.08.30"]
[EventType "swiss"]
[EventCountry "USA"]
[SourceTitle "playchess.com"]
[Source "ChessBase"]
[SourceQuality "1"]
[TimeControl "5400+30"]

{[%evp 17,63,0,0,-17,-14,-38,0,-176,-185,-183,-166,-163,-176,-209,-197,-201,-180,-195,-150,-158,-90,-129,-133,-128,-127,-138,-137,-141,-164,-158,-104,-135,-135,-144,-131,-253,-262,-256,-245,-250,-250,-632,-556,-29967,-29961,-29991,-29992,-29999]} 1. e4 {[%emt 0:01:22]} c5 {[%emt 0:01:23]} 2. Nc3 {[%emt 0:00:37]} Nc6 {[%emt 0:00:23]} 3. Nf3 {[%emt 0:00:16]} e6 {[%emt 0:00:46]} 4. d4 {[%emt 0:02:20]} cxd4 {[%emt 0:00:16]} 5. Nxd4 {[%emt 0:00:04]} Qc7 {[%emt 0:00:27]} 6. g3 {[%emt 0:01:42]} a6 {[%emt 0:01:51]} 7. a3 {[%emt 0:00:36]} Nf6 {[%emt 0:08:51]} 8. Bg2 {[%emt 0:00:44]} b5 {[%emt 0:05:00]} 9. O-O {[%emt 0:01:57]} Bb7 {[%emt 0:00:34]} 10. h3 {[%emt 0:03:52]} Be7 {[%emt 0:05:42]} 11. Kh2 {[%emt 0:02:59]} h5 {[%emt 0:05:19]} 12. f4 $2 {[%emt 0:28:03]} (12. Kg1 $11 {and White is okay.}) 12... Nxd4 {[%emt 0:01:31]} 13. Qxd4 {[%emt 0:02:23]} Bc5 {[%emt 0:03:20]} 14. Qd2 {[%emt 0:02:59] [#]} Ng4+ $1 {[%emt 0:01:20][%mdl 512]} 15. Kh1 {[%emt 0:00:31][%cal Og2f3]} Ne3 {[%emt 0:01:59]} 16. Re1 {[%emt 0:01:18]} Nxg2 {[%emt 0:00:40]} 17. Kxg2 {[%emt 0:01:31]} f5 {[%emt 0:00:49] aiming for ...0-0-0.} 18. h4 {[%emt 0:04:18]} b4 {[%emt 0:03:43]} ({Better is} 18... O-O {[%cal Od7d5] Strongly threatening ...d5!} 19. Kh2 e5) 19. axb4 {[%emt 0:05:10]} Bxb4 {[%emt 0:00:40] This pair of bishops is nice.} 20. Kh2 {[%emt 0:01:55]} Bxe4 {[%emt 0:12:09]} 21. Qd4 {[%emt 0:06:52]} Bxc3 {[%emt 0:04:52]} 22. bxc3 {[%emt 0:00:02]} O-O {[%emt 0:02:15][%cal Of8b8]} (22... Bxc2 $2 {too greedy.} 23. Qxg7 O-O-O 24. Rxa6 $16) 23. c4 {[%emt 0:05:42]} d5 {[%emt 0:06:41]} (23... a5 $142 {[%cal Of8c8]} 24. Ba3 Rfb8) 24. c5 {[%emt 0:02:17]} Rfb8 {[%emt 0:00:22]} ({Don't play} 24... Bxc2 $6 25. Rxe6 Kh7 26. Rexa6 Rxa6 27. Rxa6 $15) 25. Ba3 {[%emt 0:04:34]} Rb5 {[%emt 0:01:10]} (25... Bxc2 26. Rxe6 Qf7 27. Rb6 Rxb6 28. cxb6) 26. c4 {[%emt 0:04:44]} (26. Reb1 $17) 26... dxc4 $19 {[%emt 0:02:21]} 27. Qxc4 {[%emt 0:01:18]} Bd5 {[%emt 0:00:49]} 28. Qd4 {[%emt 0:05:29]} Rab8 {[%emt 0:00:04]} 29. Re2 $2 {[%emt 0:01:12]} (29. Qe5 Qxe5 30. Rxe5) 29... Rb1 {[%emt 0:04:15]} 30. Rc2 {[%emt 0:03:56] White is weak on the light squares} Qa5 {[%emt 0:02:41] Black mates.} 31. Bb2 {[%emt 0:01:49] [#]} R8xb2 $1 {[%emt 0:00:52][%mdl 512]} 32. Rxa5 {[%emt 0:00:25]} (32. Rxb2 Qxa1) 32... Rh1# {[%emt 0:00:39] Weighted Error Value: White=0.71/Black=0.11 (very precise) .  Loses game:     	White=1     	---        Mistake:       	White=2     	Black=2      Inaccurate:     	White=2     	Black=1      OK:         	White=2     	Black=10     Best:        	White=2     	Black=2      Brilliant:      	---       	Black=1} 0-1

[Event "1000 GM Labor Day Super Swiss 2024"]
[Site "San Jose"]
[Date "2024.09.02"]
[Round "5.19"]
[White "Harish, Neeraj"]
[Black "Widjaja, Luke"]
[Result "0-1"]
[Annotator "TA"]
[ECO "A14"]
[WhiteElo "2118"]
[BlackElo "2056"]
[PlyCount "50"]
[EventDate "2024.08.30"]
[EventType "swiss"]
[EventCountry "USA"]
[SourceTitle "playchess.com"]
[Source "ChessBase"]
[SourceQuality "1"]
[TimeControl "5400+30"]

{[%evp 12,50,0,0,4,12,12,1,7,-13,4,10,22,-9,15,-16,-17,-11,-6,-35,-31,-45,-22,-19,-6,-88,-86,-79,-76,-165,-189,-170,-164,-200,-210,-189,-189,-1671,-1647,-1556,-1531]} 1. c4 {[%emt 0:00:04]} e6 {[%emt 0:00:03]} 2. Nf3 {[%emt 0:00:09]} d5 {[%emt 0:00:10]} 3. g3 {[%emt 0:00:17]} Nf6 {[%emt 0:00:04]} 4. Bg2 {[%emt 0:00:06]} Be7 {[%emt 0:00:02]} 5. O-O {[%emt 0:00:11]} O-O {[%emt 0:00:05]} 6. b3 {[%emt 0:00:07]} d4 {[%emt 0:00:51]} 7. e3 {[%emt 0:00:46]} c5 {[%emt 0:00:05]} 8. Ne5 {[%emt 0:00:38][%cal Bf3e5,Be5d3,Bd3f2][%mdl 32] Repels Nc6} Qc7 {[%emt 0:04:30]} 9. exd4 {[%emt 0:02:28]} cxd4 {[%emt 0:01:03] The position is equal.} 10. f4 {[%emt 0:00:13]} Nfd7 {[%emt 0:02:17]} 11. Nd3 {[%emt 0:03:42]} Nc6 {[%emt 0:04:55]} 12. Nf2 {[%emt 0:00:48]} a5 {[%emt 0:03:58]} 13. a3 {[%emt 0:01:59]} b6 {[%emt 0:07:01]} 14. d3 {[%emt 0:01:13]} Bb7 {[%emt 0:00:42]} 15. Bb2 {[%emt 0:01:10]} Bc5 {[%emt 0:05:43]} 16. Nd2 {[%emt 0:11:24]} f5 {[%emt 0:08:41]} 17. Nf3 {[%emt 0:07:15]} Rae8 {[%emt 0:09:10]} 18. b4 {[%emt 0:08:48]} axb4 $17 {[%emt 0:01:58]} 19. axb4 {[%emt 0:00:08]} Nxb4 {[%emt 0:00:27]} 20. Nxd4 {[%emt 0:00:53]} (20. Ba3 $17) 20... Bxg2 $19 {[%emt 0:01:16]} 21. Kxg2 {[%emt 0:00:10]} e5 {[%emt 0:01:24]} 22. Nb5 {[%emt 0:01:49] [#]} Qc6+ {[%emt 0:01:21]} 23. Kg1 {[%emt 0:00:32]} exf4 {[%emt 0:09:01]} 24. gxf4 {[%emt 0:12:42]} (24. d4 fxg3 25. hxg3) 24... Re6 {[%emt 0:01:34] ( -> ...Rg6+)} 25. d4 {[%emt 0:04:03]} Rg6+ {[%emt 0:00:09] Weighted Error Value: White=0.54/Black=0.04 (flawless) .  Mistake:       	White=3     	---        Inaccurate:     	White=3     	---        OK:         	White=5     	Black=5      Best:        	White=1     	Black=4} 0-1

[Event "1000 GM Labor Day Super Swiss 2024"]
[Site "San Jose"]
[Date "2024.09.02"]
[Round "5.20"]
[White "Alfaro, William"]
[Black "Bhatta, Rohit"]
[Result "1/2-1/2"]
[Annotator "TA"]
[ECO "A13"]
[WhiteElo "2137"]
[BlackElo "2025"]
[PlyCount "86"]
[EventDate "2024.08.30"]
[EventType "swiss"]
[EventCountry "USA"]
[SourceTitle "playchess.com"]
[Source "ChessBase"]
[SourceQuality "1"]
[TimeControl "5400+30"]

{[%evp 9,86,0,4,-3,-5,0,0,0,19,14,16,15,28,36,43,39,53,48,59,25,37,34,26,21,12,14,14,0,12,0,21,26,29,21,25,25,81,43,52,41,34,26,27,29,35,21,20,10,35,0,0,-10,-10,-31,0,-22,-25,-69,-24,-12,-12,-46,-16,-9,-12,-8,-13,-20,0,0,0,0,0,0,0,0,0,0,0]} 1. Nf3 {[%emt 0:10:23]} d5 {[%emt 0:00:07]} 2. c4 {[%emt 0:00:39]} e6 {[%emt 0:00:10]} 3. g3 {[%emt 0:00:30]} Nf6 {[%emt 0:00:16]} 4. Bg2 {[%emt 0:00:01]} dxc4 {[%emt 0:00:27]} 5. O-O {[%emt 0:00:05]} Nbd7 {[%emt 0:00:41]} 6. Na3 {[%emt 0:00:23]} Bxa3 {[%emt 0:00:36]} 7. bxa3 {[%emt 0:00:03]} O-O {[%emt 0:01:00]} 8. Qc2 {[%emt 0:02:14]} Nb6 {[%emt 0:03:59]} 9. Ne5 {[%emt 0:07:09][%cal Oc1b2]} Nfd5 {[%emt 0:06:37]} 10. Nxc4 {[%emt 0:01:34]} (10. Bb2 {is more complex.} Bd7 11. Nxc4 Ba4 12. Qe4) 10... Nxc4 {[%emt 0:00:52]} 11. Qxc4 {[%emt 0:00:02]} b6 {[%emt 0:02:33]} 12. Bb2 {[%emt 0:08:58]} Rb8 {[%emt 0:08:45]} 13. d4 {[%emt 0:05:51]} Bb7 {[%emt 0:05:54][%cal Ob6b5]} 14. Rad1 {[%emt 0:06:43]} Nf6 {[%emt 0:11:02][%cal Ob6b5]} 15. Bxb7 {[%emt 0:00:02]} Rxb7 {[%emt 0:00:14]} 16. Qc6 {[%emt 0:02:43]} (16. Rc1 {simplifies} Qd5 17. Qxd5 Nxd5 18. a4) 16... Qd5 {[%emt 0:02:03]} 17. Rc1 {[%emt 0:00:21]} Rd8 {[%emt 0:11:31]} 18. a4 {[%emt 0:11:01][%cal Ba3a4,Ba4a5,Ba5a6][%mdl 32]} Rd6 {[%emt 0:05:14]} 19. Qxd5 {[%emt 0:05:20]} (19. Qc2 {seems wilder.} Rd8 20. Rfd1 Rbb8 21. Qb3) 19... exd5 {[%emt 0:02:07]} 20. Rc2 {[%emt 0:03:15]} c6 {[%emt 0:07:58]} 21. Rfc1 {[%emt 0:00:41][%cal Ob2a3] next Ba3! is good for White.} Rc7 $1 {[%emt 0:00:31] [#]} 22. a5 $1 {[%emt 0:06:01]} b5 {[%emt 0:08:47]} (22... Rc8 $11 {remains equal.}) (22... g5 23. Rb1) 23. a4 {[%emt 0:04:37]} bxa4 {[%emt 0:00:53]} 24. Ra1 {[%emt 0:00:06]} Rb7 {[%emt 0:04:11]} 25. Rxa4 {[%emt 0:00:07]} Re6 {[%emt 0:00:44]} 26. a6 {[%emt 0:03:02]} Rb6 {[%emt 0:05:06]} 27. e3 {[%emt 0:03:47]} Nd7 {[%emt 0:01:31]} 28. Bc3 {[%emt 0:00:17]} h6 {[%emt 0:03:29]} 29. Rca2 {[%emt 0:06:35]} Re8 {[%emt 0:02:24]} 30. Kf1 {[%emt 0:05:03]} Reb8 {[%emt 0:00:49]} 31. Ke2 {[%emt 0:00:01]} f5 {[%emt 0:01:31]} 32. f3 {[%emt 0:00:42]} Kf7 {[%emt 0:01:18]} 33. Kd3 {[%emt 0:00:09]} c5 {[%emt 0:01:08]} 34. Kc2 {[%emt 0:00:55]} c4 {[%emt 0:00:32]} 35. Ra5 {[%emt 0:00:07]} Rb5 {[%emt 0:00:36]} 36. R2a4 {[%emt 0:01:23] The position is equal.} Ke6 {[%emt 0:00:36]} (36... Rxa5 {simplifies} 37. Rxa5 Ke6 38. e4 fxe4 39. fxe4 Nf6) 37. e4 {[%emt 0:01:02]} fxe4 {[%emt 0:00:27]} (37... Rxa5 {simplifies} 38. Rxa5 fxe4 39. fxe4 Nf6) 38. fxe4 {[%emt 0:00:02]} Nf6 {[%emt 0:00:37] [#] And now ...Rxa5 would win.} (38... Rxa5 {simplifies} 39. Rxa5 Nf6 40. exd5+ Nxd5 41. Bd2 Rf8) 39. e5 {[%emt 0:04:52]} Ne4 {[%emt 0:00:37]} 40. Rxb5 {[%emt 0:00:10]} Rxb5 {[%emt 0:00:02]} 41. Rb4 {[%emt 0:00:15]} Nxc3 {[%emt 0:02:30]} ({Don't blunder} 41... Ra5 $2 42. Rb6+ axb6 43. Bxa5 $18) 42. Kxc3 {[%emt 0:00:23]} Rxb4 {[%emt 0:00:19]} 43. Kxb4 {[%emt 0:00:02]} h5 {[%emt 0:00:16] Weighted Error Value: White=0.08 (flawless) /Black=0.07 (flawless) .  Mistake:       	---       	Black=1      Inaccurate:     	White=4     	Black=3      OK:         	White=14    	Black=15     Best:        	White=1     	Black=1      Strong:       	---       	Black=1} 1/2-1/2

[Event "1000 GM Labor Day Super Swiss 2024"]
[Site "San Jose"]
[Date "2024.09.02"]
[Round "5.21"]
[White "Gui, Suyuan"]
[Black "Gonzalez Zharikov, Andrey"]
[Result "1-0"]
[Annotator "NA RC"]
[ECO "B12"]
[WhiteElo "2033"]
[BlackElo "2070"]
[PlyCount "101"]
[EventDate "2024.08.30"]
[EventType "swiss"]
[EventCountry "USA"]
[SourceTitle "playchess.com"]
[Source "ChessBase"]
[SourceQuality "1"]
[TimeControl "5400+30"]

1. e4 {[%emt 0:00:04]} c6 {[%emt 0:00:04]} 2. d4 {[%emt 0:00:08]} d5 {[%emt 0:00:03]} 3. e5 {[%emt 0:00:07]} Bf5 {[%emt 0:00:02]} 4. h4 {[%emt 0:00:11]} h5 {[%emt 0:00:05]} 5. c4 {[%emt 0:00:09]} dxc4 $11 {[%emt 0:00:28]} 6. Bxc4 {[%emt 0:00:36]} e6 {[%emt 0:00:09]} 7. Nc3 {[%emt 0:00:35]} Nd7 {[%emt 0:01:40]} 8. Nge2 {[%emt 0:00:35]} Nb6 {[%emt 0:05:04]} 9. Bb3 {[%emt 0:02:29]} Ne7 {[%emt 0:07:16] B12: Caro-Kann: Advance Variation.} 10. Ng3 {[%emt 0:07:59]} Bg6 {[%emt 0:01:32]} 11. Bg5 {[%emt 0:02:08]} Qd7 {[%emt 0:01:45]} 12. O-O {[%emt 0:09:18]} Nf5 {[%emt 0:03:48]} 13. Nge2 {[%emt 0:05:29]} Be7 {[%emt 0:03:26]} 14. Bxe7 {[%emt 0:07:28]} Nxe7 {[%emt 0:05:39]} 15. Nf4 {[%emt 0:00:42]} Rd8 {[%emt 0:04:14]} 16. Qf3 {[%emt 0:02:20]} Nbd5 {[%emt 0:04:45]} 17. Ncxd5 {[%emt 0:05:36]} cxd5 {[%emt 0:00:36]} 18. Nxg6 {[%emt 0:01:37]} Nxg6 {[%emt 0:01:52]} 19. g3 {[%emt 0:00:17]} Ne7 {[%emt 0:01:19]} 20. Rac1 {[%emt 0:00:49]} Nf5 {[%emt 0:02:05]} (20... g6 $11) 21. Rfd1 {[%emt 0:00:25]} g6 {[%emt 0:06:00]} 22. Bc2 {[%emt 0:01:13]} O-O {[%emt 0:02:11]} 23. Bxf5 {[%emt 0:01:08]} exf5 {[%emt 0:00:01]} 24. Rc3 {[%emt 0:02:58]} a6 {[%emt 0:06:08]} 25. b3 {[%emt 0:01:34]} Rfe8 {[%emt 0:03:31]} 26. Rdc1 {[%emt 0:01:37]} Qe6 {[%emt 0:00:37]} 27. Rc7 {[%emt 0:02:50]} Re7 {[%emt 0:01:07]} 28. Qf4 {[%emt 0:04:15]} Rxc7 {[%emt 0:04:16]} 29. Rxc7 {[%emt 0:00:18]} Rd7 {[%emt 0:11:16]} 30. Rc8+ {[%emt 0:03:36]} Kg7 {[%emt 0:00:02]} 31. Qc1 {[%emt 0:00:38]} Qe7 {[%emt 0:01:44]} 32. Kf1 {[%emt 0:06:54]} Rd8 {[%emt 0:03:40]} 33. Qc7 {[%emt 0:01:01]} Re8 {[%emt 0:02:16]} 34. Qxe7 {[%emt 0:02:00]} Rxe7 {[%emt 0:00:01]} 35. Rd8 {[%emt 0:00:15]} Rc7 {[%emt 0:00:05]} 36. Rxd5 {[%emt 0:00:07]} Rc1+ {[%emt 0:00:03]} 37. Kg2 {[%emt 0:01:07]} Rd1 {[%emt 0:00:09]} 38. Rd7 {[%emt 0:03:01]} Kf8 {[%emt 0:00:03]} 39. Kf3 {[%emt 0:00:58]} Rd2 {[%emt 0:00:48]} 40. Ke3 {[%emt 0:00:59]} Rxa2 {[%emt 0:00:08]} 41. Rxb7 {[%emt 0:00:10]} a5 {[%emt 0:00:29]} 42. d5 {[%emt 0:00:53]} a4 {[%emt 0:00:14]} 43. d6 {[%emt 0:00:42]} Ke8 {[%emt 0:00:08]} 44. bxa4 {[%emt 0:01:55]} Rxa4 {[%emt 0:00:04]} 45. Re7+ {[%emt 0:00:33]} Kf8 {[%emt 0:00:01]} 46. f3 {[%emt 0:00:49]} Rb4 {[%emt 0:00:23]} 47. e6 {[%emt 0:03:26]} fxe6 {[%emt 0:00:02]} 48. Rxe6 {[%emt 0:00:08]} Kf7 {[%emt 0:00:04]} 49. d7 {[%emt 0:01:57]} Rb8 {[%emt 0:00:27]} 50. Rd6 {[%emt 0:04:29]} Rd8 {[%emt 0:00:02]} 51. Kf4 {[%emt 0:00:28]} 1-0